[Event "Late-Titled-Tuesday-Blitz-January-16-2024"]
[Site "Chess.com"]
[Date "2024.01.16"]
[Round "9"]
[White "mr_gustavo"]
[Black "varunkrishnanchess"]
[Result "0-1"]
[WhiteElo "2738"]
[BlackElo "2649"]
[TimeControl "180+1"]
[EndTime "15:44:44 PST"]
[Termination "varunkrishnanchess won by resignation"]

1. Nf3 {[%clk 0:02:53.3]} 1... g6 {[%clk 0:02:55.9]} 2. g3 {[%clk 0:02:52.3]}
2... Bg7 {[%clk 0:02:55.8]} 3. Bg2 {[%clk 0:02:52.6]} 3... e5 {[%clk 0:02:52.9]}
4. O-O {[%clk 0:02:52.6]} 4... Ne7 {[%clk 0:02:52]} 5. c4 {[%clk 0:02:52.2]}
5... O-O {[%clk 0:02:51.8]} 6. Nc3 {[%clk 0:02:52.3]} 6... c6 {[%clk 0:02:51.3]}
7. d4 {[%clk 0:02:49]} 7... exd4 {[%clk 0:02:51.3]} 8. Nxd4 {[%clk 0:02:48.7]}
8... d5 {[%clk 0:02:50.9]} 9. cxd5 {[%clk 0:02:46.8]} 9... cxd5 {[%clk
0:02:50.9]} 10. Be3 {[%clk 0:02:46.2]} 10... Nbc6 {[%clk 0:02:48.5]} 11. Nxc6
{[%clk 0:02:42.7]} 11... bxc6 {[%clk 0:02:45.6]} 12. Bc5 {[%clk 0:02:39.6]}
12... Re8 {[%clk 0:02:39.8]} 13. e3 {[%clk 0:02:38.7]} 13... Be6 {[%clk
0:02:32.8]} 14. Rc1 {[%clk 0:02:35.3]} 14... Nc8 {[%clk 0:02:31.7]} 15. Ne2
{[%clk 0:02:21.8]} 15... Nd6 {[%clk 0:02:24.9]} 16. Nd4 {[%clk 0:02:21.4]} 16...
Ne4 {[%clk 0:02:15.7]} 17. Bxe4 {[%clk 0:02:18.2]} 17... dxe4 {[%clk 0:02:15.4]}
18. Nxc6 {[%clk 0:02:17.7]} 18... Qg5 {[%clk 0:02:14.4]} 19. Bd4 {[%clk
0:01:59.6]} 19... Bg4 {[%clk 0:02:12.7]} 20. Qb3 {[%clk 0:01:45.7]} 20... Qf5
{[%clk 0:01:34.8]} 21. Bxg7 {[%clk 0:01:41.2]} 21... Bf3 {[%clk 0:01:22]} 22.
Ne5 {[%clk 0:00:12.1]} 22... Rxe5 {[%clk 0:01:18.6]} 23. Rc7 {[%clk 0:00:11.6]}
23... Kxg7 {[%clk 0:01:14.3]} 24. h3 {[%clk 0:00:12.3]} 24... Rf8 {[%clk
0:01:10.1]} 25. Kh2 {[%clk 0:00:10.9]} 25... Qxh3+ {[%clk 0:01:08.9]} 0-1

[Event "Late-Titled-Tuesday-Blitz-January-16-2024"]
[Site "Chess.com"]
[Date "2024.01.16"]
[Round "9"]
[White "Maect19"]
[Black "Verony64"]
[Result "1-0"]
[WhiteElo "2363"]
[BlackElo "2197"]
[TimeControl "180+1"]
[EndTime "15:45:00 PST"]
[Termination "Maect19 won by resignation"]

1. Nf3 {[%clk 0:03:00.9]} 1... d6 {[%clk 0:02:40.5]} 2. c4 {[%clk 0:02:59.2]}
2... c6 {[%clk 0:02:40.8]} 3. Nc3 {[%clk 0:02:59.4]} 3... Nd7 {[%clk 0:02:41.4]}
4. g3 {[%clk 0:02:57.2]} 4... e5 {[%clk 0:02:42]} 5. Bg2 {[%clk 0:02:57.5]} 5...
f5 {[%clk 0:02:42.6]} 6. d3 {[%clk 0:02:56.9]} 6... Ngf6 {[%clk 0:02:43.2]} 7.
O-O {[%clk 0:02:56.8]} 7... Be7 {[%clk 0:02:43.8]} 8. b4 {[%clk 0:02:56.4]} 8...
O-O {[%clk 0:02:44.2]} 9. a4 {[%clk 0:02:56]} 9... Qe8 {[%clk 0:02:44.7]} 10. b5
{[%clk 0:02:55.5]} 10... Qh5 {[%clk 0:02:44.3]} 11. e3 {[%clk 0:02:52.6]} 11...
Ng4 {[%clk 0:02:35]} 12. h3 {[%clk 0:02:46.2]} 12... Nh6 {[%clk 0:02:28.2]} 13.
Nh2 {[%clk 0:02:45.7]} 13... Qg6 {[%clk 0:02:25.6]} 14. a5 {[%clk 0:02:37.6]}
14... f4 {[%clk 0:02:10.5]} 15. Be4 {[%clk 0:02:33.8]} 15... Qe6 {[%clk
0:01:52.8]} 16. bxc6 {[%clk 0:02:30.6]} 16... bxc6 {[%clk 0:01:51.7]} 17. Bxc6
{[%clk 0:02:30.4]} 17... Qxh3 {[%clk 0:01:49.8]} 18. Bg2 {[%clk 0:02:17.2]}
18... Qf5 {[%clk 0:01:36.6]} 19. Bxa8 {[%clk 0:02:13]} 19... Nc5 {[%clk
0:01:27.9]} 20. exf4 {[%clk 0:02:06.7]} 20... Bb7 {[%clk 0:00:49.1]} 21. Bxb7
{[%clk 0:02:04]} 21... Nxb7 {[%clk 0:00:50]} 22. fxe5 {[%clk 0:02:01.4]} 22...
Qxe5 {[%clk 0:00:43.4]} 23. Bxh6 {[%clk 0:01:52.9]} 23... gxh6 {[%clk
0:00:40.9]} 24. Nd5 {[%clk 0:01:45.8]} 24... Bd8 {[%clk 0:00:35.7]} 25. Qg4+
{[%clk 0:01:44.2]} 25... Kh8 {[%clk 0:00:34.5]} 26. Rae1 {[%clk 0:01:44.1]}
26... Qg5 {[%clk 0:00:26.5]} 27. Qxg5 {[%clk 0:01:43.5]} 27... hxg5 {[%clk
0:00:27.4]} 28. Kg2 {[%clk 0:01:38.6]} 28... Bxa5 {[%clk 0:00:23.6]} 29. Re7
{[%clk 0:01:37.2]} 29... Nc5 {[%clk 0:00:22.3]} 30. Rxa7 {[%clk 0:01:33.8]}
30... Bd8 {[%clk 0:00:17]} 31. d4 {[%clk 0:01:26.6]} 31... Nd3 {[%clk
0:00:14.4]} 32. f4 {[%clk 0:01:21.1]} 32... gxf4 {[%clk 0:00:11.4]} 33. Nxf4
{[%clk 0:01:21.1]} 33... Nb4 {[%clk 0:00:06.1]} 34. Ng6+ {[%clk 0:01:16.9]} 1-0

[Event "Late-Titled-Tuesday-Blitz-January-16-2024"]
[Site "Chess.com"]
[Date "2024.01.16"]
[Round "9"]
[White "NovakRatko"]
[Black "mightysmasher"]
[Result "0-1"]
[WhiteElo "2334"]
[BlackElo "2573"]
[TimeControl "180+1"]
[EndTime "15:45:15 PST"]
[Termination "mightysmasher won on time"]

1. d4 {[%clk 0:02:59.3]} 1... d5 {[%clk 0:03:00]} 2. c4 {[%clk 0:02:57.5]} 2...
e6 {[%clk 0:03:00]} 3. cxd5 {[%clk 0:02:57.6]} 3... exd5 {[%clk 0:02:59.9]} 4.
Nc3 {[%clk 0:02:58.5]} 4... Nf6 {[%clk 0:03:00.2]} 5. f3 {[%clk 0:02:58.7]} 5...
Be7 {[%clk 0:02:56.6]} 6. e4 {[%clk 0:02:58.6]} 6... dxe4 {[%clk 0:02:56.7]} 7.
fxe4 {[%clk 0:02:59.5]} 7... O-O {[%clk 0:02:57.1]} 8. Bc4 {[%clk 0:02:59]} 8...
Nc6 {[%clk 0:02:53.5]} 9. e5 {[%clk 0:02:58.4]} 9... Ng4 {[%clk 0:02:50.2]} 10.
Nf3 {[%clk 0:02:52.1]} 10... Be6 {[%clk 0:02:44.6]} 11. Bxe6 {[%clk 0:02:47.9]}
11... fxe6 {[%clk 0:02:44.4]} 12. O-O {[%clk 0:02:45.7]} 12... Kh8 {[%clk
0:02:43.1]} 13. h3 {[%clk 0:02:36.6]} 13... Nh6 {[%clk 0:02:42.5]} 14. Bxh6
{[%clk 0:02:36.2]} 14... gxh6 {[%clk 0:02:42.1]} 15. d5 {[%clk 0:02:10.8]} 15...
exd5 {[%clk 0:02:38]} 16. Nxd5 {[%clk 0:02:01.7]} 16... Rg8 {[%clk 0:02:36.2]}
17. e6 {[%clk 0:01:51.4]} 17... Rg6 {[%clk 0:02:31.3]} 18. Re1 {[%clk 0:01:46]}
18... Bc5+ {[%clk 0:02:22.9]} 19. Kh1 {[%clk 0:01:44.2]} 19... Qg8 {[%clk
0:02:18.7]} 20. Qe2 {[%clk 0:01:41.4]} 20... Bd6 {[%clk 0:02:09]} 21. b4 {[%clk
0:01:34.7]} 21... Re8 {[%clk 0:02:07]} 22. b5 {[%clk 0:01:27.5]} 22... Ne7
{[%clk 0:01:57.7]} 23. Qb2+ {[%clk 0:00:19.7]} 23... Qg7 {[%clk 0:01:56.8]} 24.
Qxg7+ {[%clk 0:00:18.7]} 24... Kxg7 {[%clk 0:01:56.9]} 25. Nxe7 {[%clk
0:00:13.2]} 25... Rxe7 {[%clk 0:01:56.8]} 26. Nh4 {[%clk 0:00:11.4]} 26... Rf6
{[%clk 0:01:51.7]} 27. g4 {[%clk 0:00:10.9]} 27... Rexe6 {[%clk 0:01:48.3]} 28.
Nf5+ {[%clk 0:00:10.9]} 28... Kg8 {[%clk 0:01:45.2]} 29. Rxe6 {[%clk 0:00:04]}
29... Rxe6 {[%clk 0:01:45.1]} 30. Rd1 {[%clk 0:00:03.9]} 30... Kf7 {[%clk
0:01:26.5]} 31. a4 {[%clk 0:00:02.9]} 31... a6 {[%clk 0:01:18.7]} 32. Kg2 {[%clk
0:00:02.5]} 32... axb5 {[%clk 0:01:18.3]} 33. axb5 {[%clk 0:00:03.3]} 33... h5
{[%clk 0:01:12.2]} 0-1

[Event "Late-Titled-Tuesday-Blitz-January-16-2024"]
[Site "Chess.com"]
[Date "2024.01.16"]
[Round "9"]
[White "AmanteDeMoi"]
[Black "enriquetejedor"]
[Result "0-1"]
[WhiteElo "2584"]
[BlackElo "2761"]
[TimeControl "180+1"]
[EndTime "15:45:21 PST"]
[Termination "enriquetejedor won on time"]

1. Nf3 {[%clk 0:02:56.9]} 1... g5 {[%clk 0:02:59]} 2. Nxg5 {[%clk 0:02:53.3]}
2... e5 {[%clk 0:02:59]} 3. Nf3 {[%clk 0:02:50.5]} 3... Nc6 {[%clk 0:02:56.5]}
4. e4 {[%clk 0:02:47]} 4... d6 {[%clk 0:02:54.2]} 5. d4 {[%clk 0:02:43.4]} 5...
exd4 {[%clk 0:02:50.8]} 6. Nxd4 {[%clk 0:02:41.6]} 6... Bg7 {[%clk 0:02:51.2]}
7. Bb5 {[%clk 0:02:31.8]} 7... Bd7 {[%clk 0:02:50.9]} 8. Bxc6 {[%clk 0:02:29.3]}
8... bxc6 {[%clk 0:02:50.8]} 9. Nc3 {[%clk 0:02:27.6]} 9... Ne7 {[%clk
0:02:44.9]} 10. Be3 {[%clk 0:02:24.4]} 10... c5 {[%clk 0:02:36.6]} 11. Nde2
{[%clk 0:02:19]} 11... Rb8 {[%clk 0:02:33.3]} 12. Rb1 {[%clk 0:02:18.4]} 12...
O-O {[%clk 0:02:31.6]} 13. Qd2 {[%clk 0:02:17.5]} 13... Ng6 {[%clk 0:02:25.1]}
14. Bh6 {[%clk 0:02:15.2]} 14... Qh4 {[%clk 0:02:18.7]} 15. Bxg7 {[%clk
0:02:14.6]} 15... Kxg7 {[%clk 0:02:19.6]} 16. O-O {[%clk 0:02:09.6]} 16... Rg8
{[%clk 0:02:18.7]} 17. f4 {[%clk 0:02:01.3]} 17... Kh8 {[%clk 0:02:16.4]} 18.
Nd5 {[%clk 0:01:57.9]} 18... Rg7 {[%clk 0:02:10.7]} 19. Qc3 {[%clk 0:01:23]}
19... Rg8 {[%clk 0:02:05]} 20. Nf6 {[%clk 0:01:15.1]} 20... Bb5 {[%clk
0:01:49.2]} 21. Ng3 {[%clk 0:01:08.6]} 21... Bxf1 {[%clk 0:01:32.4]} 22. Rxf1
{[%clk 0:01:09.5]} 22... Nxf4 {[%clk 0:01:16.7]} 23. Nxg8 {[%clk 0:00:29.6]}
23... Qxg3 {[%clk 0:01:14.7]} 24. hxg3 {[%clk 0:00:15.1]} 24... Ne2+ {[%clk
0:01:14.8]} 25. Kf2 {[%clk 0:00:12.8]} 25... Nxc3 {[%clk 0:01:15]} 26. bxc3
{[%clk 0:00:12.2]} 26... Rxg8 {[%clk 0:01:12.4]} 27. Rb1 {[%clk 0:00:13.1]}
27... Re8 {[%clk 0:01:06.5]} 28. Kf3 {[%clk 0:00:12.9]} 28... c6 {[%clk
0:01:02.6]} 29. Rb7 {[%clk 0:00:12.7]} 29... d5 {[%clk 0:01:03.2]} 30. exd5
{[%clk 0:00:11.6]} 30... cxd5 {[%clk 0:01:04.1]} 31. Rxa7 {[%clk 0:00:10.4]}
31... Kg7 {[%clk 0:01:02.9]} 32. a4 {[%clk 0:00:04.9]} 32... Re4 {[%clk
0:01:01.6]} 33. a5 {[%clk 0:00:01.8]} 33... Rc4 {[%clk 0:01:01.7]} 34. Ke2
{[%clk 0:00:01.7]} 34... Rxc3 {[%clk 0:01:02.6]} 0-1

[Event "Late-Titled-Tuesday-Blitz-January-16-2024"]
[Site "Chess.com"]
[Date "2024.01.16"]
[Round "9"]
[White "Quattroporte300"]
[Black "HajiyevKanan"]
[Result "0-1"]
[WhiteElo "2413"]
[BlackElo "2561"]
[TimeControl "180+1"]
[EndTime "15:45:22 PST"]
[Termination "HajiyevKanan won on time"]

1. d4 {[%clk 0:03:00.9]} 1... d5 {[%clk 0:03:00.1]} 2. Nf3 {[%clk 0:03:00.5]}
2... c5 {[%clk 0:03:00.5]} 3. dxc5 {[%clk 0:02:59.8]} 3... e6 {[%clk 0:03:00.4]}
4. g3 {[%clk 0:02:57.4]} 4... Bxc5 {[%clk 0:03:00.6]} 5. Bg2 {[%clk 0:02:58.1]}
5... Nf6 {[%clk 0:02:59.2]} 6. O-O {[%clk 0:02:58.6]} 6... O-O {[%clk
0:02:59.8]} 7. c4 {[%clk 0:02:58.3]} 7... dxc4 {[%clk 0:02:59.8]} 8. Qxd8 {[%clk
0:02:57.6]} 8... Rxd8 {[%clk 0:03:00.7]} 9. Nbd2 {[%clk 0:02:53.1]} 9... c3
{[%clk 0:02:55.6]} 10. bxc3 {[%clk 0:02:52.4]} 10... Nc6 {[%clk 0:02:55.9]} 11.
Nb3 {[%clk 0:02:52.2]} 11... Bb6 {[%clk 0:02:56.2]} 12. c4 {[%clk 0:02:52.2]}
12... Bd7 {[%clk 0:02:54.9]} 13. Bb2 {[%clk 0:02:40.8]} 13... Rac8 {[%clk
0:02:54]} 14. Rfd1 {[%clk 0:02:40]} 14... Be8 {[%clk 0:02:52.2]} 15. Rac1 {[%clk
0:02:36.6]} 15... Nb4 {[%clk 0:02:50.8]} 16. a3 {[%clk 0:02:28.2]} 16... Na6
{[%clk 0:02:51.1]} 17. Rxd8 {[%clk 0:02:20]} 17... Rxd8 {[%clk 0:02:51.3]} 18.
Ne5 {[%clk 0:02:15.5]} 18... Ba4 {[%clk 0:02:49.3]} 19. Bxb7 {[%clk 0:01:57.4]}
19... Bxb3 {[%clk 0:02:42.6]} 20. Bxa6 {[%clk 0:01:57]} 20... Rd2 {[%clk
0:02:42.8]} 21. Bc3 {[%clk 0:01:29.9]} 21... Ra2 {[%clk 0:02:42.5]} 22. Bb4
{[%clk 0:01:09.3]} 22... Bd4 {[%clk 0:02:30]} 23. Nd3 {[%clk 0:00:57.2]} 23...
Ne4 {[%clk 0:02:24.2]} 24. e3 {[%clk 0:00:53.7]} 24... Bb6 {[%clk 0:02:19.7]}
25. c5 {[%clk 0:00:53.7]} 25... Bc7 {[%clk 0:02:19.9]} 26. c6 {[%clk 0:00:46]}
26... Bc2 {[%clk 0:02:11]} 27. Bc4 {[%clk 0:00:42]} 27... Bxd3 {[%clk
0:01:49.5]} 28. Bxa2 {[%clk 0:00:40.6]} 28... f5 {[%clk 0:01:44.3]} 29. Bb1
{[%clk 0:00:37.5]} 29... Bb5 {[%clk 0:01:42.6]} 30. Rd1 {[%clk 0:00:29.4]} 30...
Bb6 {[%clk 0:01:38.9]} 31. Bxe4 {[%clk 0:00:21.1]} 31... fxe4 {[%clk 0:01:39.8]}
32. Rd6 {[%clk 0:00:17.6]} 32... Kf7 {[%clk 0:01:39.6]} 33. Rd7+ {[%clk
0:00:17.8]} 33... Kf6 {[%clk 0:01:38.2]} 34. Be7+ {[%clk 0:00:12.9]} 34... Ke5
{[%clk 0:01:37.6]} 35. Bd6+ {[%clk 0:00:09.3]} 35... Kd5 {[%clk 0:01:37.7]} 36.
Bb8+ {[%clk 0:00:05.4]} 36... Kxc6 {[%clk 0:01:37.6]} 37. Rxg7 {[%clk
0:00:05.8]} 37... a5 {[%clk 0:01:35.2]} 38. Rxh7 {[%clk 0:00:06.1]} 38... Bc5
{[%clk 0:01:35.1]} 39. Rc7+ {[%clk 0:00:04.5]} 39... Kd5 {[%clk 0:01:35.5]} 40.
Ba7 {[%clk 0:00:04]} 40... Bxa3 {[%clk 0:01:34.9]} 41. h4 {[%clk 0:00:03.1]}
41... Bd6 {[%clk 0:01:34.8]} 42. Rc1 {[%clk 0:00:02.2]} 42... a4 {[%clk
0:01:35.1]} 43. h5 {[%clk 0:00:02.3]} 43... Be5 {[%clk 0:01:35.1]} 44. Bd4
{[%clk 0:00:01.9]} 44... Bxd4 {[%clk 0:01:29]} 45. exd4 {[%clk 0:00:02.6]} 45...
e3 {[%clk 0:01:29.9]} 46. fxe3 {[%clk 0:00:02.1]} 46... Bd3 {[%clk 0:01:29.5]}
0-1

[Event "Late-Titled-Tuesday-Blitz-January-16-2024"]
[Site "Chess.com"]
[Date "2024.01.16"]
[Round "9"]
[White "aceontheturn"]
[Black "ninguno46"]
[Result "1-0"]
[WhiteElo "2759"]
[BlackElo "2574"]
[TimeControl "180+1"]
[EndTime "15:45:28 PST"]
[Termination "aceontheturn won on time"]

1. e4 {[%clk 0:02:55.4]} 1... c5 {[%clk 0:02:54.3]} 2. Nc3 {[%clk 0:02:53.3]}
2... e6 {[%clk 0:02:53.2]} 3. f4 {[%clk 0:02:53.2]} 3... Ne7 {[%clk 0:02:49.8]}
4. Nf3 {[%clk 0:02:52.1]} 4... a6 {[%clk 0:02:48.6]} 5. d4 {[%clk 0:02:51.8]}
5... cxd4 {[%clk 0:02:48.2]} 6. Qxd4 {[%clk 0:02:51.2]} 6... Nec6 {[%clk
0:02:42.8]} 7. Qf2 {[%clk 0:02:50.3]} 7... d6 {[%clk 0:02:39]} 8. Be3 {[%clk
0:02:49.1]} 8... Nd7 {[%clk 0:02:38.5]} 9. O-O-O {[%clk 0:02:49.5]} 9... b5
{[%clk 0:02:36.9]} 10. Qg3 {[%clk 0:02:20.7]} 10... Rb8 {[%clk 0:02:24.8]} 11.
f5 {[%clk 0:02:17.6]} 11... Nde5 {[%clk 0:02:06.4]} 12. Nxe5 {[%clk 0:02:17.6]}
12... Nxe5 {[%clk 0:02:05.2]} 13. Bd4 {[%clk 0:02:18.3]} 13... f6 {[%clk
0:02:00.1]} 14. Be2 {[%clk 0:02:14.7]} 14... Nf7 {[%clk 0:01:28.3]} 15. fxe6
{[%clk 0:02:12]} 15... Bxe6 {[%clk 0:01:27.7]} 16. Bg4 {[%clk 0:02:12.3]} 16...
Bxg4 {[%clk 0:01:23.2]} 17. Qxg4 {[%clk 0:02:13.2]} 17... Qd7 {[%clk 0:01:22.9]}
18. Qh5 {[%clk 0:02:08.9]} 18... g6 {[%clk 0:01:20.1]} 19. Qf3 {[%clk 0:02:08]}
19... Bg7 {[%clk 0:01:00.3]} 20. Nd5 {[%clk 0:01:52.2]} 20... Ne5 {[%clk
0:00:46.4]} 21. Qxf6 {[%clk 0:01:23]} 21... Rf8 {[%clk 0:00:21.1]} 22. Qh4
{[%clk 0:01:22.8]} 22... h6 {[%clk 0:00:11.1]} 23. Rhf1 {[%clk 0:01:22.7]} 23...
g5 {[%clk 0:00:09.4]} 24. Qh5+ {[%clk 0:01:15.4]} 24... Rf7 {[%clk 0:00:09.4]}
25. Rf5 {[%clk 0:00:43.9]} 25... Kf8 {[%clk 0:00:05.1]} 26. Rdf1 {[%clk
0:00:41.3]} 26... Rxf5 {[%clk 0:00:03.2]} 27. Rxf5+ {[%clk 0:00:41.8]} 27... Kg8
{[%clk 0:00:02.6]} 28. Bxe5 {[%clk 0:00:41.9]} 1-0

[Event "Late-Titled-Tuesday-Blitz-January-16-2024"]
[Site "Chess.com"]
[Date "2024.01.16"]
[Round "9"]
[White "ural58"]
[Black "SEBAZZANO"]
[Result "0-1"]
[WhiteElo "2410"]
[BlackElo "2231"]
[TimeControl "180+1"]
[EndTime "15:45:29 PST"]
[Termination "SEBAZZANO won on time"]

1. e4 {[%clk 0:03:00.3]} 1... e6 {[%clk 0:02:57.3]} 2. d4 {[%clk 0:02:59.2]}
2... d5 {[%clk 0:02:57.2]} 3. Nc3 {[%clk 0:02:44]} 3... dxe4 {[%clk 0:02:56.1]}
4. Nxe4 {[%clk 0:02:40]} 4... Bd7 {[%clk 0:02:56.5]} 5. Nf3 {[%clk 0:02:27.5]}
5... Bc6 {[%clk 0:02:56.6]} 6. Bd3 {[%clk 0:02:21.4]} 6... Bxe4 {[%clk
0:02:56.2]} 7. Bxe4 {[%clk 0:02:17.3]} 7... c6 {[%clk 0:02:56.5]} 8. c3 {[%clk
0:02:03.4]} 8... Nf6 {[%clk 0:02:56.8]} 9. Bc2 {[%clk 0:02:00.1]} 9... Bd6
{[%clk 0:02:56.8]} 10. Qe2 {[%clk 0:01:41.8]} 10... Nbd7 {[%clk 0:02:56.3]} 11.
Bg5 {[%clk 0:01:37]} 11... Qc7 {[%clk 0:02:56]} 12. h3 {[%clk 0:01:32.9]} 12...
Bf4 {[%clk 0:02:45.9]} 13. Bxf4 {[%clk 0:01:27.6]} 13... Qxf4 {[%clk 0:02:45.3]}
14. g3 {[%clk 0:01:23.9]} 14... Qc7 {[%clk 0:02:41.5]} 15. O-O-O {[%clk
0:01:22.4]} 15... O-O-O {[%clk 0:02:40.3]} 16. Rhe1 {[%clk 0:01:05.7]} 16...
Rhe8 {[%clk 0:02:38]} 17. Ne5 {[%clk 0:01:02.6]} 17... Nxe5 {[%clk 0:02:31.8]}
18. Qxe5 {[%clk 0:01:01.9]} 18... Qxe5 {[%clk 0:02:27.4]} 19. Rxe5 {[%clk
0:00:48.2]} 19... Rd5 {[%clk 0:02:14.7]} 20. f4 {[%clk 0:00:44.6]} 20... Nd7
{[%clk 0:02:00.6]} 21. Re3 {[%clk 0:00:36.5]} 21... Rd6 {[%clk 0:01:59.5]} 22.
Bxh7 {[%clk 0:00:28.8]} 22... g6 {[%clk 0:01:56.6]} 23. h4 {[%clk 0:00:28.8]}
23... Rh8 {[%clk 0:01:51.4]} 24. Bxg6 {[%clk 0:00:28.2]} 24... fxg6 {[%clk
0:01:52.3]} 25. Rde1 {[%clk 0:00:21.7]} 25... Nf8 {[%clk 0:01:48.2]} 26. Kc2
{[%clk 0:00:20.1]} 26... Rh7 {[%clk 0:01:31.1]} 27. Kd3 {[%clk 0:00:21]} 27...
c5 {[%clk 0:01:27]} 28. Re4 {[%clk 0:00:16.7]} 28... cxd4 {[%clk 0:01:25.6]} 29.
Rxd4 {[%clk 0:00:16.9]} 29... Rhd7 {[%clk 0:01:25.7]} 30. Rxd6 {[%clk 0:00:11]}
30... Rxd6+ {[%clk 0:01:25.6]} 31. Ke3 {[%clk 0:00:11.2]} 31... Kd7 {[%clk
0:01:23.4]} 32. g4 {[%clk 0:00:10.2]} 32... Ke7 {[%clk 0:01:21.5]} 33. Rh1
{[%clk 0:00:09.4]} 33... Ra6 {[%clk 0:01:16.3]} 34. a3 {[%clk 0:00:08.5]} 34...
Kf6 {[%clk 0:01:13.3]} 35. h5 {[%clk 0:00:08.1]} 35... gxh5 {[%clk 0:01:12.5]}
36. Rxh5 {[%clk 0:00:07.3]} 36... Rb6 {[%clk 0:01:09.8]} 37. b4 {[%clk
0:00:02.1]} 37... Ra6 {[%clk 0:01:09.2]} 0-1

[Event "Late-Titled-Tuesday-Blitz-January-16-2024"]
[Site "Chess.com"]
[Date "2024.01.16"]
[Round "9"]
[White "krzyzan94"]
[Black "jefferyx"]
[Result "0-1"]
[WhiteElo "2843"]
[BlackElo "3005"]
[TimeControl "180+1"]
[EndTime "15:45:34 PST"]
[Termination "jefferyx won on time"]

1. e4 {[%clk 0:03:00.9]} 1... c5 {[%clk 0:02:59.6]} 2. Nf3 {[%clk 0:03:00.8]}
2... d6 {[%clk 0:02:59.5]} 3. d4 {[%clk 0:03:00.8]} 3... cxd4 {[%clk 0:03:00.4]}
4. Nxd4 {[%clk 0:03:01.6]} 4... Nf6 {[%clk 0:03:00.6]} 5. Nc3 {[%clk 0:03:02.1]}
5... a6 {[%clk 0:03:01]} 6. Be2 {[%clk 0:02:56.4]} 6... e5 {[%clk 0:02:59.5]} 7.
Nb3 {[%clk 0:02:56.2]} 7... Be7 {[%clk 0:02:59.2]} 8. O-O {[%clk 0:02:55.4]}
8... O-O {[%clk 0:02:59.1]} 9. Qd3 {[%clk 0:02:56]} 9... a5 {[%clk 0:02:39]} 10.
a4 {[%clk 0:02:47.2]} 10... Na6 {[%clk 0:02:37.6]} 11. Nd5 {[%clk 0:02:06.1]}
11... Nxd5 {[%clk 0:02:37.4]} 12. exd5 {[%clk 0:02:07]} 12... f5 {[%clk
0:02:37.1]} 13. f4 {[%clk 0:01:58.6]} 13... e4 {[%clk 0:02:34.8]} 14. Qd1 {[%clk
0:01:56.3]} 14... Bf6 {[%clk 0:02:31.6]} 15. Kh1 {[%clk 0:01:51.8]} 15... Bd7
{[%clk 0:02:25]} 16. c3 {[%clk 0:01:40.1]} 16... Qe8 {[%clk 0:01:58.8]} 17. Nd4
{[%clk 0:01:16.7]} 17... Nc5 {[%clk 0:01:58.8]} 18. Nb5 {[%clk 0:01:13.8]} 18...
Qe7 {[%clk 0:01:36.9]} 19. Be3 {[%clk 0:01:14.2]} 19... Rac8 {[%clk 0:01:35]}
20. Ra3 {[%clk 0:01:04.4]} 20... Kh8 {[%clk 0:01:24.7]} 21. Qd2 {[%clk
0:00:50.1]} 21... Rfe8 {[%clk 0:01:20.8]} 22. b4 {[%clk 0:00:39]} 22... Nd3
{[%clk 0:01:17.2]} 23. bxa5 {[%clk 0:00:23.2]} 23... h6 {[%clk 0:00:54.6]} 24.
Nd4 {[%clk 0:00:22.3]} 24... Qf7 {[%clk 0:00:51.5]} 25. Bxd3 {[%clk 0:00:16.4]}
25... exd3 {[%clk 0:00:52.4]} 26. Qxd3 {[%clk 0:00:17.3]} 26... Qxd5 {[%clk
0:00:51.9]} 27. Bg1 {[%clk 0:00:15.1]} 27... Bc6 {[%clk 0:00:47.7]} 28. Qg3
{[%clk 0:00:13.5]} 28... Qc4 {[%clk 0:00:47.2]} 29. Nxc6 {[%clk 0:00:13.4]}
29... Qxf1 {[%clk 0:00:45.2]} 30. Nd4 {[%clk 0:00:08.6]} 30... Bxd4 {[%clk
0:00:44.5]} 31. cxd4 {[%clk 0:00:07.4]} 31... Rc1 {[%clk 0:00:45.4]} 32. Qf2
{[%clk 0:00:01.8]} 32... Qxf2 {[%clk 0:00:43.5]} 0-1